bitfinex-derivatives/quotes_SOLF0:USTF0_20260310
["timestamp","ask_amount","ask_price","bid_price","bid_amount"]
[1773131155618,7.90160182,87.019,86.982,0.08234971]
[1773131159416,10.341,87.029,86.982,8.01153499]
[1773131159615,7.90160182,87.033,86.99,3.38462965]
[1773131159811,7.90160182,87.033,86.991,7.92918528]
[1773131160513,3.38462965,87.04,87.003,0.08410996]
[1773131160514,13.72462965,87.04,87.003,0.08410996]
[1773131160917,7.84017105,87.035,87.003,0.08410996]
[1773131161111,7.84017105,87.029,87.003,0.08410996]
[1773131161614,7.84017105,87.029,86.98,3.38462965]
[1773131161809,7.84017105,87.029,86.981,7.92918528]
[1773131162015,7.84017105,87.029,87.007,0.07773589]
[1773131162919,7.84017105,87.029,86.981,7.92918528]
[1773131163716,7.47827545,87.019,86.97,13.73262965]
[1773131163911,7.47827545,87.019,86.97,10.348]
[1773131165120,0.08325251,87.003,86.966,7.8572016]
[1773131166425,0.08325251,87.003,86.97,3.38462965]
[1773131166722,0.08325251,87.003,86.971,7.8572016]
[1773131166919,3.38462965,87.04,86.981,7.8572016]
[1773131167116,7.47827545,87.045,86.991,7.8572016]
[1773131168422,7.47827545,87.042,87.009,0.07274551]
[1773131168916,3.38462965,87.04,87.009,0.07274551]
[1773131169315,10.34,87.038,87.009,0.07274551]
[1773131169924,17.81827545,87.038,87.009,0.07274551]
[1773131170224,7.47827545,87.029,86.982,10.347]
[1773131171726,7.47827545,87.029,86.982,18.2042016]
[1773131171921,7.47827545,87.029,86.983,7.8572016]
[1773131172123,10.341,87.036,86.991,7.8572016]
[1773131172426,7.47827545,87.042,87.0,11.24183125]
[1773131172628,7.47827545,87.042,87.0,7.8572016]
[1773131172923,7.47827545,87.029,86.991,10.346]
[1773131173124,7.47827545,87.029,86.986,7.8572016]
[1773131174220,7.47827545,87.029,86.99,3.38462965]
[1773131174424,7.47827545,87.029,86.99,11.24183125]
[1773131175116,0.07261263,87.03,86.991,7.8572016]
[1773131176325,10.342,87.027,86.991,7.8572016]
[1773131176521,0.07261263,87.03,86.991,7.8572016]
[1773131177225,10.342,87.026,86.991,7.8572016]
[1773131177520,0.07261263,87.03,86.991,7.8572016]
[1773131179023,7.47827545,87.027,86.977,7.8572016]
[1773131179225,7.47827545,87.027,86.981,7.8572016]
[1773131179620,10.342,87.025,86.981,7.8572016]
[1773131180326,10.342,87.022,86.981,7.8572016]
[1773131181430,10.343,87.017,86.972,7.8572016]
[1773131181630,0.07268822,87.01,86.972,7.8572016]
[1773131182221,7.47827545,87.008,86.961,7.8572016]
[1773131183431,7.47827545,87.008,86.961,18.2062016]
[1773131183632,7.47827545,87.008,86.962,7.8572016]
[1773131183832,0.07268822,87.01,86.962,7.8572016]
[1773131184330,7.55096367,87.01,86.962,7.8572016]
[1773131184529,10.93559332,87.01,86.962,7.8572016]
[1773131185327,7.55096367,87.01,86.971,7.8572016]
[1773131187122,0.07268822,87.01,86.971,7.8572016]
[1773131188929,10.344,87.008,86.971,7.8572016]
[1773131189135,0.07268822,87.01,86.971,7.8572016]
[1773131190726,0.07268822,87.01,86.981,7.8572016]
[1773131190932,0.07268822,87.01,86.961,7.8572016]
[1773131191137,3.45731787,87.01,86.961,7.8572016]
[1773131191441,3.38462965,87.01,86.961,7.8572016]
[1773131191638,0.07304774,86.994,86.961,7.8572016]
[1773131192436,0.07304774,86.994,86.962,10.349]
[1773131192637,0.07304774,86.994,86.961,7.8572016]
[1773131195743,0.07304774,86.994,86.95,10.76560519]
[1773131195939,0.07304774,86.994,86.951,7.38334224]
[1773131196245,0.07304774,86.994,86.953,7.38334224]
[1773131196637,0.07304774,86.994,86.96,10.76560519]
[1773131196833,0.07304774,86.994,86.96,7.38334224]
[1773131197242,7.35428624,86.997,86.96,7.38334224]
[1773131198443,0.0745383,86.987,86.96,7.38334224]
[1773131199439,7.35428624,86.986,86.946,10.351]
[1773131199739,10.73654919,86.98,86.931,7.38334224]
[1773131199944,7.35428624,86.979,86.931,7.38334224]
[1773131201144,7.35428624,86.989,86.933,7.38334224]
[1773131201445,7.35428624,86.989,86.941,7.38334224]
[1773131202439,10.347,86.986,86.941,7.38334224]
[1773131202640,7.35428624,87.003,86.951,7.38334224]
[1773131203042,7.35428624,86.999,86.951,7.38334224]
[1773131203348,0.07416826,86.986,86.951,7.38334224]
[1773131203542,7.4284545,86.986,86.935,7.38334224]
[1773131203747,7.4284545,86.986,86.941,7.38334224]
[1773131204046,7.35428624,86.986,86.941,7.38334224]
[1773131204244,14.18805379,87.041,86.941,7.38334224]
[1773131204245,10.346,86.992,86.941,7.38334224]
[1773131204935,0.07406148,86.975,86.941,7.38334224]
[1773131205136,0.07406148,86.975,86.943,7.38334224]
[1773131207748,0.07406148,86.975,86.944,10.351]
[1773131207944,0.07406148,86.975,86.945,7.38334224]
[1773131214546,7.84544361,86.975,86.933,7.46838426]
[1773131214952,7.77138213,86.975,86.933,7.46838426]
[1773131215348,10.348,86.972,86.933,7.46838426]
[1773131217248,7.78748063,86.971,86.933,7.46838426]
[1773131217649,3.38226295,86.99,86.933,7.46838426]
[1773131217849,11.16339552,86.99,86.941,7.46838426]
[1773131218046,7.78113257,86.989,86.941,7.46838426]
[1773131218560,0.0730976,86.974,86.941,7.46838426]
[1773131219361,0.0730976,86.974,86.941,17.82038426]
[1773131220458,10.346,86.988,86.945,7.46838426]
[1773131220655,10.346,86.988,86.94,3.38226295]
[1773131220656,10.346,86.988,86.95,7.46838426]
[1773131222258,10.345,86.996,86.951,7.46838426]
[1773131222851,7.92412115,86.993,86.951,7.46838426]
[1773131223250,3.38226295,86.98,86.938,7.46838426]
[1773131223445,10.348,86.972,86.925,7.46838426]
[1773131223847,3.38226295,86.98,86.928,7.79990531]
[1773131224146,7.44250338,86.988,86.951,7.79990531]
[1773131224349,10.82476633,87.0,86.951,7.79990531]
[1773131224547,7.44250338,86.999,86.951,7.79990531]
[1773131224856,0.08349705,86.978,86.951,7.79990531]
[1773131225753,10.344,87.008,86.97,3.38226295]
[1773131225956,7.44250338,87.025,86.971,7.79990531]
[1773131227256,7.44250338,87.025,86.989,0.07587987]
[1773131227454,10.343,87.02,86.989,0.07587987]
[1773131229358,10.70110448,87.059,86.989,0.07587987]
[1773131229359,10.341,87.031,86.991,7.79990531]
[1773131229760,7.44250338,87.039,86.991,7.79990531]
[1773131229960,3.38226295,87.03,86.991,7.79990531]
[1773131230156,10.82476633,87.03,86.991,7.79990531]
[1773131230464,7.44250338,87.029,86.977,7.79990531]
[1773131230656,3.38226295,87.01,86.953,7.79990531]
[1773131230857,7.44250338,87.014,86.895,20.715]
[1773131230858,7.44250338,87.014,86.971,7.79990531]
[1773131231058,3.38226295,87.02,86.971,7.79990531]
[1773131231253,7.44250338,87.026,86.971,7.79990531]
[1773131231465,7.44250338,87.026,86.98,11.18216826]
[1773131231662,7.44250338,87.026,86.981,7.79990531]
[1773131231963,0.07580431,87.007,86.981,7.79990531]
[1773131235266,7.51830769,87.007,86.94,7.79990531]
[1773131235464,7.51830769,87.007,86.96,3.38226295]
[1773131235855,7.44250338,87.007,86.96,3.38226295]
[1773131236264,0.08267571,86.992,86.961,7.79990531]
[1773131236566,0.08267571,86.992,86.97,3.38226295]
[1773131239665,0.08267571,86.992,86.961,7.79990531]
[1773131241366,0.08267571,86.992,86.962,10.349]
[1773131241567,0.08267571,86.992,86.963,7.79990531]
[1773131242564,0.08267571,86.992,86.952,7.79990531]
[1773131243165,10.345,87.002,86.952,7.79990531]
[1773131243370,10.345,87.002,86.961,7.79990531]
[1773131243973,0.08187115,86.99,86.961,7.79990531]
[1773131245172,0.08187115,86.99,86.971,7.79990531]
[1773131245375,7.44250338,87.02,86.971,7.79990531]
[1773131246373,10.343,87.019,86.972,7.79990531]
[1773131247069,10.343,87.019,86.987,0.07427317]
[1773131259784,7.31632118,87.031,86.988,7.03706601]
[1773131259976,7.31632118,87.031,86.991,7.03706601]
[1773131260678,7.31632118,87.031,87.002,0.07435343]
[1773131262078,7.27032271,87.019,86.978,7.03706601]
[1773131263084,7.20611582,87.015,86.978,7.03706601]
[1773131263286,3.38016245,87.01,86.966,7.03706601]
[1773131263482,7.20611582,87.009,86.966,7.03706601]
[1773131264083,7.17719793,87.007,86.966,7.03706601]
[1773131266888,7.17719793,87.007,86.97,10.41722846]
[1773131267686,7.17719793,87.007,86.97,7.03706601]
[1773131268077,10.344,87.012,86.971,7.03706601]
[1773131268481,0.07334823,86.997,86.971,7.03706601]
[1773131269587,0.07334823,86.997,86.976,7.03706601]
[1773131269796,6.99304143,87.028,86.981,7.03706601]
[1773131270581,6.99304143,87.028,86.971,7.03706601]
[1773131270783,10.342,87.027,86.981,7.03706601]
[1773131270991,6.99304143,87.028,86.991,7.03706601]
[1773131276396,10.341,87.037,86.994,7.13463853]
[1773131276990,6.8290034,87.04,86.998,7.13463853]
[1773131277191,10.34,87.045,87.001,7.13463853]
[1773131277494,6.80654412,87.044,87.001,7.13463853]
[1773131277688,6.78247188,87.042,87.001,7.13463853]
[1773131277892,6.78247188,87.029,86.99,7.13463853]
[1773131279394,10.342,87.027,86.99,7.13463853]
[1773131279598,16.96470293,87.027,86.99,7.13463853]
[1773131279993,6.59921415,87.026,86.99,7.13463853]
[1773131281392,6.42531995,87.023,86.971,10.348]
[1773131281600,6.42531995,87.023,86.972,7.13463853]
[1773131282499,0.08679556,87.006,86.972,7.13463853]
[1773131282699,0.08679556,87.006,86.973,10.348]
[1773131283002,0.08679556,87.006,86.974,7.13463853]
[1773131284202,0.08679556,87.006,86.961,7.08710126]
[1773131284400,6.41661003,87.006,86.961,7.08710126]
[1773131284602,6.32981447,87.006,86.961,7.08710126]
[1773131285216,0.0724902,86.992,86.961,7.08710126]
[1773131285514,0.0724902,86.992,86.971,7.08710126]
[1773131285915,10.343,87.012,86.971,7.08710126]
[1773131286415,0.07333943,86.99,86.971,7.08710126]
[1773131288913,0.07333943,86.99,86.962,10.349]
[1773131289111,0.07333943,86.99,86.963,7.08710126]
[1773131290715,6.28171629,87.011,86.971,7.08710126]
[1773131296212,6.28171629,87.011,86.975,7.08710126]
[1773131296718,16.48914378,87.023,86.98,3.38016245]
[1773131296918,16.48914378,87.023,86.981,7.08710126]
[1773131297315,6.14714378,87.023,86.983,7.08710126]
[1773131297513,10.341,87.031,86.991,7.08710126]
[1773131297719,10.341,87.031,86.994,7.08710126]
[1773131297922,6.12850464,87.047,87.01,3.38016245]
[1773131298321,6.12850464,87.047,87.001,7.08710126]
[1773131298716,3.38016245,87.03,86.988,7.08710126]
[1773131298912,6.10592859,87.029,86.988,7.08710126]
[1773131300321,16.43068337,87.019,86.971,7.08710126]
[1773131300624,6.08768337,87.018,86.971,7.08710126]
[1773131301323,0.07879355,87.003,86.971,7.08710126]
[1773131301723,0.07879355,87.003,86.932,62.90105421]
[1773131301724,0.07879355,87.003,86.981,7.08710126]
[1773131302223,6.08768337,87.018,86.981,7.08710126]
[1773131302613,0.08707983,87.001,86.981,7.08710126]
[1773131303016,0.08707983,87.001,86.969,7.08710126]
[1773131303426,6.03187593,87.007,86.969,7.08710126]
[1773131303814,0.07315797,86.994,86.96,3.38016245]
[1773131304120,0.07315797,86.994,86.962,10.349]
[1773131305921,0.07315797,86.994,86.965,7.08710126]
[1773131307322,0.07315797,86.994,86.969,17.43510126]
[1773131307522,0.07315797,86.994,86.97,7.08710126]
[1773131308422,0.07315797,86.994,86.96,3.38016245]
[1773131308723,0.07315797,86.994,86.961,7.08710126]
[1773131311522,3.38016245,86.99,86.948,7.08710126]
[1773131311826,5.99218314,86.989,86.948,7.08710126]
[1773131312325,16.33818314,86.989,86.948,7.08710126]
[1773131312528,0.07384852,86.977,86.948,7.08710126]
[1773131313229,0.07384852,86.977,86.951,7.08710126]
[1773131318729,0.07384852,86.977,86.94,10.12592667]
[1773131318935,0.07384852,86.977,86.951,6.7425429]
[1773131319432,5.87375166,86.995,86.951,6.7425429]
[1773131319828,0.07905774,86.973,86.951,6.7425429]
[1773131322736,0.07905774,86.973,86.954,6.7425429]
[1773131324736,0.07905774,86.973,86.945,6.7425429]
[1773131326340,0.07905774,86.973,86.946,10.351]
[1773131326744,0.07905774,86.973,86.947,6.7425429]
[1773131327644,0.07905774,86.973,86.935,10.353]
[1773131328834,5.81859084,86.971,86.92,3.38338377]
[1773131329040,5.81859084,86.969,86.911,21.09237055]
[1773131329342,9.20197461,86.96,86.91,3.38338377]
[1773131329543,9.20197461,86.96,86.911,6.7425429]
[1773131329745,0.08149298,86.949,86.911,6.7425429]
[1773131330348,0.08149298,86.949,86.921,6.7425429]
[1773131330947,3.38338377,86.97,86.921,6.7425429]
[1773131331348,0.07550793,86.944,86.921,6.7425429]
[1773131339155,0.07550793,86.944,86.925,6.58991587]
[1773131340150,0.07550793,86.944,86.928,10.353]
[1773131340455,5.7943701,86.985,86.931,6.58991587]
[1773131340656,5.7943701,86.985,86.941,6.58991587]
[1773131341358,5.80545104,86.983,86.941,6.58991587]
[1773131341553,5.80545104,86.979,86.941,6.58991587]
[1773131342158,5.80545104,86.979,86.953,0.08235133]
[1773131342352,20.683,87.029,86.929,6.58991587]
[1773131342353,5.71251958,86.969,86.929,6.58991587]
[1773131342657,5.79465428,86.969,86.929,6.58991587]
[1773131343055,16.14365428,86.969,86.929,6.58991587]
[1773131343752,5.79465428,86.969,86.932,6.49292387]
[1773131344356,0.0821347,86.969,86.932,6.49292387]
[1773131344553,0.0821347,86.969,86.933,10.353]
[1773131344757,0.0821347,86.969,86.934,6.49292387]
[1773131346149,0.0821347,86.969,86.941,6.49292387]
[1773131346859,5.52535643,86.991,86.941,6.49292387]
[1773131347060,0.08552783,86.964,86.941,6.49292387]
[1773131349260,10.347,86.986,86.943,6.49292387]
[1773131349560,5.52535643,86.991,86.951,6.49292387]
[1773131349763,10.345,86.998,86.954,6.49292387]
[1773131349960,5.57858899,87.004,86.961,6.49292387]
[1773131350760,5.57858899,87.004,86.974,0.07365964]
[1773131354666,10.345,87.003,86.974,0.07365964]
[1773131355163,10.343,87.016,86.975,6.49292387]
[1773131355665,5.54162034,87.006,86.961,6.49292387]
[1773131356061,5.54162034,87.006,86.987,0.07419249]
[1773131356267,0.08261379,86.992,86.961,6.49292387]
[1773131358068,5.68474329,86.989,86.941,6.49292387]
[1773131358366,5.68474329,86.989,86.951,6.49292387]
[1773131359068,0.07920932,86.979,86.951,6.49292387]
[1773131360370,0.07920932,86.979,86.952,10.351]
[1773131360564,0.07920932,86.979,86.953,6.49292387]
[1773131360768,5.67457571,87.004,86.961,6.49292387]
[1773131362165,5.67457571,87.004,86.974,0.07898513]
[1773131364473,10.344,87.009,86.974,0.07898513]
[1773131367775,15.71479757,87.009,86.974,0.07898513]
[1773131368673,3.38338377,87.01,86.974,6.571909]
[1773131369680,8.74053376,87.01,86.974,6.571909]
[1773131370477,19.08453376,87.01,86.974,6.571909]
[1773131370871,5.41489439,87.009,86.974,6.571909]
[1773131373079,5.44947998,87.029,86.974,6.571909]
[1773131373278,3.38338377,87.02,86.976,6.49292387]
[1773131373479,8.81104075,87.01,86.976,6.49292387]
[1773131374077,8.81104075,87.01,86.984,0.07335656]
[1773131374976,5.47123407,87.017,86.984,0.07335656]
[1773131375679,3.38338377,87.01,86.984,0.07335656]
[1773131376982,5.47123407,87.017,86.984,0.07335656]
[1773131378486,5.56886049,87.029,86.991,6.30615316]
[1773131379485,5.56886049,87.029,87.001,0.08467726]
[1773131379881,10.34,87.039,87.001,6.39083042]
[1773131380082,5.63392622,87.041,87.001,6.39083042]
[1773131380285,10.339,87.048,87.001,6.39083042]
[1773131380482,15.97292622,87.048,87.001,6.39083042]
[1773131381089,10.34,87.041,87.001,6.39083042]
[1773131382189,5.57688472,87.047,87.001,6.39083042]
[1773131382595,5.57688472,87.047,87.01,3.37958627]
[1773131382790,5.57688472,87.047,87.001,6.39083042]
[1773131383291,5.57688472,87.047,87.001,6.30615316]
[1773131383491,5.57688472,87.047,87.015,0.07912901]
[1773131383792,5.62077204,87.039,87.015,0.07912901]
[1773131383989,10.34,87.04,87.015,0.07912901]
[1773131384183,5.62077204,87.039,87.015,0.07912901]
[1773131385990,10.34,87.038,87.015,0.07912901]
[1773131386190,5.61434654,87.037,87.015,0.07912901]
[1773131394199,10.341,87.036,87.015,0.07912901]
[1773131394397,5.5589696,87.035,87.015,0.07912901]
[1773131396997,3.37958627,87.03,86.981,6.2846094]
[1773131397198,5.45942718,87.029,86.981,6.2846094]
[1773131397395,5.45942718,87.029,86.991,6.2846094]
[1773131397901,5.45942718,87.029,86.956,21.25216141]
[1773131397902,5.45413441,86.999,86.945,6.2846094]
[1773131398103,5.45413441,86.999,86.961,6.2846094]
[1773131398306,5.45413441,87.017,86.961,6.2846094]
[1773131398995,0.07908234,86.998,86.961,6.2846094]
[1773131400503,0.07908234,86.998,86.962,10.349]
[1773131400699,0.07908234,86.998,86.971,6.2846094]
[1773131401100,5.4534343,87.018,86.971,6.2846094]
[1773131401300,5.4534343,87.039,86.981,6.2846094]
[1773131402509,5.44839796,87.031,86.981,6.2846094]
[1773131402808,5.44839796,87.029,87.001,0.07577467]
[1773131403906,5.41527699,87.028,87.001,0.07577467]
[1773131404413,5.41527699,87.028,86.981,6.2846094]
[1773131404914,5.41527699,87.028,87.006,0.08795795]
[1773131405413,5.40804384,87.025,87.006,0.08795795]
[1773131406406,10.341,87.035,86.992,6.59161645]
[1773131406610,0.07542817,87.024,86.992,6.59161645]
[1773131406911,0.07542817,87.024,87.0,3.37958627]
[1773131407513,0.07542817,87.024,86.992,6.59161645]
[1773131407709,5.41940566,87.019,86.971,6.59161645]
[1773131408713,0.0758166,87.004,86.971,6.59161645]
[1773131408909,0.0758166,87.004,86.981,6.59161645]
[1773131409308,0.0758166,87.004,86.982,10.347]
[1773131409506,5.41940566,87.019,86.93,55.197]
[1773131409507,5.41325764,87.031,86.991,6.59161645]
[1773131409909,10.341,87.03,86.991,6.59161645]
[1773131410620,5.41325764,87.031,86.991,6.59161645]
[1773131411320,5.41325764,87.031,87.002,0.08156916]
[1773131413017,15.75425764,87.031,87.002,0.08156916]
[1773131413218,5.41325764,87.031,87.002,0.08156916]
[1773131414518,3.37958627,87.03,87.002,0.08156916]
[1773131414718,5.18190237,87.029,86.978,6.59161645]
[1773131415015,5.18764365,87.024,86.981,6.59161645]
[1773131416321,0.07721173,87.011,86.981,6.59161645]
[1773131418824,0.07721173,87.011,86.984,6.59161645]
[1773131419616,0.07721173,87.011,86.971,6.59161645]
[1773131420128,4.95821133,87.013,86.971,6.59161645]
[1773131420523,0.07422636,87.0,86.971,6.59161645]
[1773131421123,5.01142872,87.042,86.991,6.59161645]
[1773131421322,3.37958627,87.04,86.991,6.59161645]
[1773131421521,5.01142872,87.039,86.991,6.59161645]
[1773131421722,10.341,87.029,86.991,6.59161645]
[1773131421922,5.00754584,87.028,86.991,6.59161645]
[1773131422622,10.341,87.034,86.991,6.59161645]
[1773131422931,5.00754584,87.04,87.001,6.66969428]
[1773131423132,15.67208943,87.064,87.02,3.37958627]
[1773131423427,4.96060672,87.063,87.02,3.37958627]
[1773131424024,4.96060672,87.063,87.033,0.07693198]
[1773131424323,4.95682519,87.049,87.0,3.37958627]
[1773131424831,4.95682519,87.049,87.001,6.59161645]
[1773131425530,10.339,87.046,87.001,6.59161645]
[1773131425825,0.08257594,87.034,87.001,6.59161645]
[1773131430730,5.03414259,87.034,86.988,6.59161645]
[1773131431129,15.28435924,87.032,86.988,6.59161645]
[1773131431630,0.08485849,87.02,86.988,6.59161645]
[1773131432731,4.92181916,87.045,87.001,6.59161645]
[1773131432926,5.00356068,87.058,87.011,6.59161645]
[1773131434334,15.33020269,87.054,87.026,0.08008572]
[1773131435333,10.339,87.051,87.026,0.08008572]
[1773131435735,4.99312753,87.051,87.026,0.08008572]
[1773131435940,3.37958627,87.06,87.026,0.08008572]
[1773131436133,4.9899953,87.064,87.026,0.08008572]
[1773131437333,10.338,87.059,87.026,0.08008572]
[1773131438535,15.32638105,87.059,87.026,0.08008572]
[1773131440136,3.37752817,87.05,87.026,0.08008572]
[1773131440341,4.98655859,87.049,87.026,0.08008572]
[1773131440743,4.98655859,87.049,87.002,6.44279784]
[1773131441139,4.98655859,87.049,87.029,0.0725563]
[1773131441344,5.07269698,87.047,87.029,0.0725563]
[1773131441841,5.07269698,87.047,87.002,6.44279784]
[1773131442236,5.07269698,87.047,87.029,0.08376369]
[1773131443141,5.05179486,87.059,87.029,0.08376369]
[1773131443641,5.05179486,87.059,87.014,6.44279784]
[1773131443939,5.05179486,87.059,87.017,6.44279784]
[1773131444138,5.05179486,87.059,87.035,0.07577897]
[1773131447140,10.337,87.069,87.035,0.07577897]
[1773131447643,10.337,87.069,87.028,6.44279784]
[1773131448137,10.337,87.069,87.043,0.07817093]
[1773131449140,5.0200238,87.076,87.043,0.07817093]
[1773131449745,15.3524291,87.086,87.039,6.3225509]
[1773131450044,15.3524291,87.086,87.051,0.08408139]
[1773131450242,3.37752817,87.09,87.051,0.08408139]
[1773131450243,10.335,87.083,87.051,0.08408139]
[1773131452251,15.34561796,87.083,87.051,0.08408139]
[1773131452749,4.99702297,87.082,87.051,0.08408139]
[1773131452949,4.99471894,87.074,87.051,0.08408139]
[1773131453451,4.99471894,87.074,87.039,6.3225509]
[1773131453848,4.99471894,87.074,87.054,0.07461339]
[1773131454147,10.336,87.073,87.054,0.07461339]
[1773131454344,4.99471894,87.074,87.054,0.07461339]
[1773131454749,5.0152541,87.087,87.054,0.07461339]
[1773131455447,5.01299722,87.099,87.061,6.3225509]
[1773131455646,5.01299722,87.099,87.063,6.3225509]
[1773131455950,5.01054865,87.111,87.071,6.3225509]
[1773131456253,10.331,87.119,87.071,6.3225509]
[1773131456951,10.331,87.119,87.086,0.08549753]
[1773131458353,20.653,87.156,87.058,6.3225509]
[1773131458354,4.88356367,87.099,87.058,6.3225509]
[1773131458552,4.88356367,87.079,87.041,6.3225509]
[1773131458848,3.37752817,87.1,87.041,6.3225509]
[1773131459051,3.37752817,87.1,87.051,6.3225509]
[1773131459452,10.333,87.098,87.052,6.3225509]
[1773131459751,0.08543995,87.084,87.06,9.70007907]
[1773131459952,4.91398954,87.104,87.061,6.3225509]
[1773131460153,4.91398954,87.104,87.066,0.07575147]
[1773131460353,8.28928234,87.1,87.066,0.07575147]
[1773131460554,4.91175417,87.099,87.066,0.07575147]
[1773131460851,4.91175417,87.099,87.047,6.3225509]
[1773131461246,4.91175417,87.099,87.074,0.07370855]
[1773131461447,10.333,87.098,87.074,0.07370855]
[1773131461746,4.87724484,87.097,87.074,0.07370855]
[1773131462156,4.87506774,87.124,87.074,6.39625945]
[1773131462452,4.87506774,87.124,87.081,6.3225509]
[1773131463054,20.645,87.181,87.012,160.888]
[1773131463055,4.84843017,87.143,87.1,3.37752817]
[1773131463250,4.84843017,87.157,87.11,3.37752817]
[1773131463449,4.84843017,87.157,87.111,6.3225509]
[1773131464053,4.84891838,87.171,87.126,6.03176026]
[1773131464354,4.84891838,87.189,87.131,6.03176026]
[1773131464546,3.37752817,87.2,87.15,3.37752817]
[1773131464752,18.54644655,87.2,87.15,3.37752817]
[1773131464952,8.22644655,87.2,87.151,6.03176026]
[1773131465151,8.22644655,87.2,87.166,0.08357244]
[1773131465552,4.84891838,87.2,87.166,0.08357244]
[1773131466254,8.13887943,87.18,87.135,6.03176026]
[1773131466461,4.76135126,87.179,87.135,6.03176026]
[1773131467348,4.8731343,87.169,87.121,6.03176026]
[1773131467756,0.07971067,87.166,87.121,6.03176026]
[1773131469251,0.07971067,87.166,87.123,6.03176026]
[1773131469456,4.84301149,87.198,87.123,6.03176026]
[1773131469661,10.321,87.191,87.135,6.03176026]
[1773131469954,4.84301149,87.198,87.135,6.03176026]
[1773131470356,4.92075956,87.196,87.138,6.03176026]
[1773131471056,4.92075956,87.196,87.158,0.07519995]
[1773131474554,10.319,87.212,87.159,6.03176026]
[1773131474750,4.89039097,87.219,87.159,6.03176026]
[1773131475459,4.89039097,87.219,87.18,0.07937085]
[1773131475849,10.318,87.217,87.18,0.07937085]
[1773131476159,4.92955312,87.216,87.18,0.07937085]
[1773131476656,4.92955312,87.216,87.155,6.03176026]
[1773131476854,4.92955312,87.216,87.158,6.03176026]
[1773131477060,4.94086466,87.23,87.158,6.03176026]
[1773131477551,4.94086466,87.23,87.178,0.07728147]
[1773131477750,4.94086466,87.23,87.178,6.10904173]
[1773131480349,10.317,87.228,87.178,6.10904173]
[1773131480550,4.75995734,87.243,87.183,6.03176026]
[1773131481560,4.75995734,87.243,87.204,0.08311689]
[1773131481760,4.82458435,87.222,87.164,6.03176026]
[1773131482261,4.74065392,87.222,87.164,6.03176026]
[1773131482660,4.74065392,87.209,87.164,6.03176026]
[1773131483266,0.07429434,87.195,87.164,6.03176026]
[1773131485358,4.77874595,87.237,87.164,6.03176026]
[1773131485558,4.77874595,87.237,87.171,6.03176026]
[1773131486363,10.316,87.235,87.178,6.03176026]
[1773131487164,4.78170484,87.234,87.178,6.03176026]
[1773131487762,4.78002125,87.214,87.154,6.03176026]
[1773131488155,4.78002125,87.245,87.154,6.03176026]
[1773131488361,4.78002125,87.245,87.174,6.03176026]
[1773131489068,10.317,87.225,87.174,6.03176026]
[1773131490363,10.319,87.213,87.16,6.03176026]
[1773131492062,15.06903387,87.224,87.171,6.03176026]
[1773131492267,20.626,87.261,87.171,6.03176026]
[1773131492268,4.6657235,87.239,87.171,6.03176026]
[1773131492468,4.6657235,87.239,87.179,6.03176026]
[1773131493467,10.316,87.233,87.182,6.03176026]
[1773131494171,10.316,87.233,87.184,6.35058079]
[1773131494570,10.314,87.254,87.191,6.35058079]
[1773131494961,10.314,87.254,87.199,6.35058079]
[1773131495162,10.313,87.264,87.199,6.35058079]
[1773131495363,9.02746054,87.3,87.19,9.02746054]
[1773131495364,4.65052441,87.285,87.211,6.35058079]
[1773131495568,4.65052441,87.285,87.23,3.36041525]
[1773131495766,4.65052441,87.285,87.231,6.35058079]
[1773131496166,4.65052441,87.285,87.24,3.36041525]
[1773131496366,10.311,87.281,87.24,3.36041525]
[1773131496574,10.311,87.281,87.24,9.71099604]
[1773131497575,10.311,87.281,87.24,6.35058079]
[1773131497870,14.96439675,87.281,87.221,6.35058079]
[1773131498270,4.65339675,87.271,87.201,6.35058079]
[1773131498474,4.65339675,87.271,87.212,6.35058079]
[1773131499069,4.65873043,87.267,87.197,6.35058079]
[1773131499269,8.99978679,87.3,87.18,8.99978679]
[1773131499270,4.65873043,87.259,87.18,6.35058079]
[1773131499469,4.65873043,87.239,87.18,6.35058079]
[1773131500171,14.97444818,87.223,87.164,16.67458079]
[1773131500375,14.97444818,87.223,87.1,160.724]
[1773131500376,4.08379054,87.222,87.165,6.35058079]
[1773131501071,9.01450947,87.24,87.185,0.07256976]
[1773131501577,10.318,87.215,87.165,6.35058079]
[1773131502276,0.0722701,87.221,87.165,6.35058079]
[1773131502478,4.02816804,87.226,87.165,6.35058079]
[1773131503374,10.318,87.22,87.165,6.35058079]
[1773131503580,0.08478909,87.204,87.165,6.35058079]
[1773131505485,0.08478909,87.204,87.152,6.35058079]
[1773131505980,10.32,87.204,87.152,6.35058079]
[1773131506384,0.08269417,87.187,87.152,6.35058079]
[1773131508574,10.32,87.204,87.161,0.07266055]
[1773131508782,9.01450947,87.23,87.161,0.07266055]
[1773131508783,10.32,87.197,87.161,0.07266055]
[1773131509281,3.97661276,87.186,87.137,6.35058079]